bitfinex-derivatives/quotes_BTCF0:USTF0_20250626
["timestamp","ask_amount","ask_price","bid_price","bid_amount"]
[1750952326136,1.72361022,106970.0,106960.0,0.901762]
[1750952326635,1.72361022,106970.0,106960.0,0.902602]
[1750952326931,1.97361022,106970.0,106960.0,0.902522]
[1750952327132,1.97361022,106970.0,106960.0,0.904442]
[1750952327335,1.72361022,106970.0,106960.0,0.904442]
[1750952327536,1.72358076,106970.0,106960.0,0.904442]
[1750952328731,1.97358076,106970.0,106960.0,0.904442]
[1750952329134,2.04791351,106970.0,106960.0,0.1899221]
[1750952329740,2.04791351,106970.0,106960.0,0.1889221]
[1750952329936,0.1869221,106960.0,106950.0,0.2803941]
[1750952330132,1.33139646,106960.0,106950.0,0.9943141]
[1750952330335,1.58139646,106960.0,106950.0,0.9943141]
[1750952330633,1.58139646,106960.0,106950.0,0.2803941]
[1750952330835,1.33139646,106960.0,106950.0,0.2803941]
[1750952331030,1.33139646,106960.0,106950.0,0.2813941]
[1750952331234,1.33139646,106960.0,106950.0,0.2833941]
[1750952332537,1.33139646,106960.0,106950.0,0.2823941]
[1750952333137,1.33139646,106960.0,106950.0,0.2356604]
[1750952333138,1.37139646,106960.0,106950.0,0.2356604]
[1750952333345,1.0109977,106960.0,106950.0,0.1869272]
[1750952333536,1.37339646,106960.0,106950.0,0.1869272]
[1750952334436,0.1869395,106950.0,106940.0,1.0402359]
[1750952334642,1.37143826,106950.0,106940.0,1.0402359]
[1750952334942,1.37143826,106950.0,106940.0,0.3271559]
[1750952335741,1.37143826,106950.0,106940.0,0.3281559]
[1750952335943,1.0110395,106950.0,106940.0,0.3281559]
[1750952336539,1.0110395,106950.0,106940.0,0.3291559]
[1750952337345,0.8241,106950.0,106940.0,0.3291559]
[1750952337539,0.5008,106950.0,106940.0,0.68955466]
[1750952337744,0.4208,106950.0,106940.0,0.81845466]
[1750952338043,0.6506396,106950.0,106940.0,0.81845466]
[1750952338240,0.9106396,106950.0,106940.0,0.81845466]
[1750952338447,0.9106396,106950.0,106940.0,0.68955466]
[1750952338640,0.6829396,106950.0,106940.0,0.68955466]
[1750952338842,1.31333836,106950.0,106940.0,0.002]
[1750952339644,0.9529396,106950.0,106940.0,0.54935576]
[1750952340141,0.9539396,106950.0,106940.0,0.186957]
[1750952340343,0.186957,106940.0,106930.0,0.23463525]
[1750952340540,1.41555576,106940.0,106930.0,0.23463525]
[1750952340739,1.055157,106940.0,106930.0,0.94631525]
[1750952342552,1.012957,106940.0,106930.0,1.30671401]
[1750952342754,1.012957,106940.0,106930.0,1.38991401]
[1750952343049,1.012957,106940.0,106930.0,1.39047401]
[1750952343444,0.826,106940.0,106930.0,1.39047401]
[1750952343649,1.012957,106940.0,106930.0,1.39047401]
[1750952345552,0.4108,106940.0,106930.0,1.39047401]
[1750952345750,0.4108,106940.0,106930.0,1.43287401]
[1750952351056,0.6808,106940.0,106930.0,0.36123525]
[1750952351252,0.6808,106940.0,106930.0,1.64403401]
[1750952351653,0.4408,106940.0,106930.0,1.64403401]
[1750952354468,0.4108,106940.0,106930.0,1.64403401]
[1750952355259,0.3608,106940.0,106930.0,1.64403401]
[1750952355460,0.7408,106940.0,106930.0,1.64403401]
[1750952356162,0.4108,106940.0,106930.0,1.64403401]
[1750952356361,0.43987674,106940.0,106930.0,1.64403401]
[1750952357062,0.07907674,106940.0,106930.0,2.00483401]
[1750952357468,0.05,106940.0,106930.0,2.00483401]
[1750952358572,0.07911094,106940.0,106930.0,2.00483401]
[1750952358871,0.05,106940.0,106930.0,2.00483401]
[1750952359269,0.5917408,106950.0,106940.0,0.186957]
[1750952359569,1.02105277,106950.0,106940.0,0.54755576]
[1750952360367,0.74991197,106950.0,106940.0,1.46795576]
[1750952360568,0.75091197,106950.0,106940.0,1.55395576]
[1750952361372,0.75091197,106950.0,106940.0,1.55495576]
[1750952361572,0.74991197,106950.0,106940.0,1.55795576]
[1750952362072,0.38911197,106950.0,106940.0,1.55795576]
[1750952362674,0.38911197,106950.0,106940.0,1.91875576]
[1750952363471,0.38911197,106950.0,106940.0,1.91775576]
[1750952363665,0.38911197,106950.0,106940.0,1.91975576]
[1750952363865,0.02911197,106950.0,106940.0,1.91975576]
[1750952364770,0.4048,106960.0,106940.0,1.73279876]
[1750952364969,0.76393192,106960.0,106950.0,0.63503826]
[1750952365176,0.76373192,106960.0,106950.0,0.63523826]
[1750952365477,0.80423192,106960.0,106950.0,0.63523826]
[1750952366776,0.80423192,106960.0,106950.0,0.63623826]
[1750952367273,0.35913192,106960.0,106950.0,0.63623826]
[1750952367468,0.35913192,106960.0,106950.0,1.03993826]
[1750952368575,0.33,106960.0,106950.0,1.04093826]
[1750952368772,0.33,106960.0,106950.0,1.06093826]
[1750952370075,0.0002,106970.0,106950.0,1.06093826]
[1750952370274,0.0002,106970.0,106960.0,2.26435952]
[1750952370579,0.0002,106980.0,106970.0,0.1869046]
[1750952370775,0.43380736,106990.0,106980.0,0.1868871]
[1750952370982,0.78360701,106990.0,106980.0,1.50258586]
[1750952371382,0.74000701,106990.0,106980.0,1.54538586]
[1750952371582,0.74000701,106990.0,106980.0,1.61897991]
[1750952371773,0.37920701,106990.0,106980.0,1.61897991]
[1750952372281,0.38220701,106990.0,106980.0,1.61897991]
[1750952372582,0.38220701,106990.0,106980.0,1.6344602]
[1750952372782,0.03220701,106990.0,106980.0,1.27406144]
[1750952373076,0.03220701,106990.0,106980.0,1.9952602]
[1750952373281,1e-08,106990.0,106980.0,2.93622746]
[1750952373575,1e-08,106990.0,106980.0,3.19622746]
[1750952373980,0.00500001,106990.0,106980.0,3.19622746]
[1750952374181,0.005,106990.0,106980.0,3.19622746]
[1750952374377,0.0012,107000.0,106990.0,0.1868696]
[1750952374575,0.34,107000.0,106990.0,1.39526712]
[1750952374780,0.34,107000.0,106990.0,1.03486836]
[1750952375676,0.345,107000.0,106990.0,1.03486836]
[1750952377471,0.345,107000.0,106990.0,1.40526712]
[1750952378587,0.3618,107030.0,107000.0,0.2335622]
[1750952378887,0.8051,107030.0,107020.0,0.54721596]
[1750952381080,0.8071,107030.0,107020.0,0.54721596]
[1750952381284,0.8071,107030.0,107020.0,0.1868172]
[1750952381484,0.8071,107030.0,107020.0,0.54721596]
[1750952381880,0.8071,107030.0,107020.0,1.46675624]
[1750952382078,0.8071,107030.0,107020.0,1.45733596]
[1750952383784,0.8071,107030.0,107020.0,1.46627731]
[1750952384084,0.8071,107030.0,107020.0,1.0964572]
[1750952384281,0.8071,107030.0,107020.0,1.45685596]
[1750952384683,0.7636,107030.0,107020.0,1.45685596]
[1750952386783,0.7636,107030.0,107020.0,1.46647021]
[1750952388982,0.7636,107030.0,107020.0,1.10607145]
[1750952389282,0.7636,107030.0,107020.0,1.46647021]
[1750952390693,0.9503998,107030.0,107020.0,1.46647021]
[1750952390992,0.9503998,107030.0,107020.0,1.10607145]
[1750952394084,1.31079856,107030.0,107020.0,0.19643145]
[1750952394290,1.72995829,107030.0,107020.0,0.1868173]
[1750952394493,1.72995829,107030.0,107020.0,0.8850573]
[1750952395090,1.47995829,107030.0,107020.0,0.8850573]
[1750952395291,0.97945043,107030.0,107020.0,0.8852573]
[1750952395685,0.79265063,107030.0,107020.0,0.8852573]
[1750952396094,0.79265063,107030.0,107020.0,1.24565606]
[1750952396300,0.79265063,107030.0,107020.0,0.8852573]
[1750952396494,0.79265063,107030.0,107020.0,1.24565606]
[1750952396890,0.79265063,107030.0,107020.0,0.8852573]
[1750952397193,0.79265063,107030.0,107020.0,1.24565606]
[1750952398695,0.43185063,107030.0,107020.0,1.24565606]
[1750952398991,0.79265063,107030.0,107020.0,1.24565606]
[1750952399488,0.43185063,107030.0,107020.0,1.24565606]
[1750952399689,0.34205063,107030.0,107020.0,1.62163953]
[1750952399889,0.34205063,107030.0,107020.0,1.75103953]
[1750952401082,0.34105063,107030.0,107020.0,1.75503953]
[1750952401292,0.03105063,107030.0,107020.0,1.75503953]
[1750952401487,0.03005063,107030.0,107020.0,1.75803953]
[1750952402496,0.03005063,107030.0,107020.0,1.77803953]
[1750952402890,0.03005063,107030.0,107020.0,2.10803953]
[1750952403093,0.03735529,107040.0,107030.0,0.1867998]
[1750952403294,0.39715529,107040.0,107030.0,2.19517732]
[1750952404199,0.39715529,107040.0,107030.0,2.19817732]
[1750952404594,0.39715529,107040.0,107030.0,1.4783798]
[1750952404899,0.39715529,107040.0,107030.0,2.04273856]
[1750952405202,0.39715529,107040.0,107030.0,2.73845856]
[1750952405791,0.39715529,107040.0,107030.0,1.83877856]
[1750952406096,0.39715529,107040.0,107030.0,2.73817856]
[1750952406593,0.75795529,107040.0,107030.0,1.43397856]
[1750952406792,0.84545529,107040.0,107030.0,2.29155856]
[1750952407099,1.03223769,107040.0,107030.0,2.29151856]
[1750952407298,0.84545529,107040.0,107030.0,2.29151856]
[1750952408998,0.84545529,107040.0,107030.0,1.9311198]
[1750952409198,0.84545529,107040.0,107030.0,2.29151856]
[1750952410794,0.84545529,107040.0,107030.0,1.9311198]
[1750952410990,0.84545529,107040.0,107030.0,1.2360398]
[1750952411197,1.39263645,107040.0,107030.0,1.9300798]
[1750952412112,1.03223769,107040.0,107030.0,1.9300798]
[1750952412314,1.03223769,107040.0,107030.0,2.29047856]
[1750952412315,0.84545529,107040.0,107030.0,2.29047856]
[1750952414219,0.84545529,107040.0,107030.0,1.9300798]
[1750952414520,0.84545529,107040.0,107030.0,2.29047856]
[1750952415217,1.06136219,107040.0,107030.0,1.0320798]
[1750952415514,1.42176095,107040.0,107030.0,1.0320798]
[1750952415720,1.42176095,107040.0,107030.0,1.7251598]
[1750952416314,1.42176095,107040.0,107030.0,0.1909998]
[1750952416816,1.43140473,107040.0,107030.0,0.1909998]
[1750952417923,1.07100597,107040.0,107030.0,0.1909998]
[1750952418122,1.43140473,107040.0,107030.0,0.1909998]
[1750952418309,0.1868347,107010.0,106990.0,0.04765102]
[1750952418509,0.90805096,107000.0,106990.0,0.00056171]
[1750952418715,1.42487546,107000.0,106990.0,0.18743141]
[1750952418914,1.67487546,107000.0,106990.0,0.18743141]
[1750952419126,1.42487546,107000.0,106990.0,0.00056171]
[1750952419619,1.67487546,107000.0,106990.0,0.00356171]
[1750952419918,0.1868871,106980.0,106970.0,0.2803339]
[1750952420124,2.32100586,106980.0,106970.0,0.27958808]
[1750952420327,2.50845791,106980.0,106970.0,0.27958808]
[1750952420624,0.1869046,106970.0,106960.0,0.00093489]
[1750952420924,1.41335541,106970.0,106960.0,0.18785699]
[1750952421319,1.6827046,106970.0,106960.0,0.18785699]
[1750952421516,2.10515541,106970.0,106960.0,0.18785699]
[1750952422727,2.10515541,106970.0,106960.0,0.18985699]
[1750952423120,2.10515541,106970.0,106960.0,0.19485699]
[1750952423727,0.9909046,106970.0,106960.0,0.19485699]
[1750952426121,0.804,106970.0,106960.0,0.19485699]
[1750952426521,0.7208,106970.0,106960.0,1.3501678]
[1750952426824,0.7208,106970.0,106960.0,1.4366678]
[1750952427215,0.9077046,106970.0,106960.0,1.4366678]
[1750952427420,0.7208,106970.0,106960.0,0.96931699]
[1750952427615,0.36,106970.0,106960.0,0.96931699]
[1750952427818,0.36,106970.0,106960.0,1.01421699]
[1750952428122,0.36,106970.0,106960.0,1.4366678]
[1750952428523,0.7208,106970.0,106960.0,1.4366678]
[1750952428716,0.9077046,106970.0,106960.0,1.4366678]
[1750952428924,0.9077046,106970.0,106960.0,1.01421699]
[1750952429329,0.9491046,106970.0,106960.0,1.01421699]
[1750952429530,0.7622,106970.0,106960.0,1.01421699]
[1750952430626,0.9491046,106970.0,106960.0,1.01421699]
[1750952430931,0.9922046,106970.0,106960.0,1.01421699]
[1750952431429,0.9922046,106970.0,106960.0,0.19485699]
[1750952432924,0.9922046,106970.0,106960.0,0.23955699]
[1750952433126,0.9922046,106970.0,106960.0,0.28285699]
[1750952436334,0.8053,106970.0,106960.0,0.28285699]
[1750952436526,0.8053,106970.0,106960.0,0.28305699]
[1750952437234,0.9922046,106970.0,106960.0,0.28305699]
[1750952438728,0.8053,106970.0,106960.0,0.28305699]
[1750952439032,0.7622,106970.0,106960.0,0.28305699]
[1750952439233,0.7622,106970.0,106960.0,0.7467078]
[1750952439628,0.7208,106970.0,106960.0,0.7467078]
[1750952442429,0.0002,106980.0,106970.0,0.1869046]
[1750952442630,0.361,106990.0,106970.0,1.49978334]
[1750952442835,0.681,106990.0,106980.0,1.49605791]
[1750952443143,0.6808,106990.0,106980.0,1.63895791]
[1750952443642,0.34890875,106990.0,106980.0,1.63895791]
[1750952444344,0.34890875,106990.0,106980.0,1.71641151]
[1750952445137,0.34890875,106990.0,106980.0,2.05721151]
[1750952445337,0.32,106990.0,106980.0,2.27721151]
[1750952448645,0.34905357,106990.0,106980.0,2.27721151]
[1750952451045,0.32,106990.0,106980.0,2.27721151]
[1750952455653,0.32,106990.0,106980.0,2.27429151]
[1750952456446,0.32,106990.0,106980.0,1.39049151]
[1750952456652,0.3649,106990.0,106980.0,2.26969151]
[1750952456853,0.3649,106990.0,106980.0,1.8472407]
[1750952457049,0.3649,106990.0,106980.0,2.26969151]
[1750952457244,0.3649,106990.0,106980.0,1.8472407]
[1750952457444,0.7257,106990.0,106980.0,1.60685151]
[1750952457650,0.7257,106990.0,106980.0,1.65175151]
[1750952458052,0.7257,106990.0,106980.0,1.69565151]
[1750952458350,0.32,106990.0,106980.0,1.69565151]
[1750952458546,0.32,106990.0,106980.0,2.09645151]
[1750952459348,0.32,106990.0,106980.0,1.6740007]
[1750952459556,0.32,106990.0,106980.0,2.09645151]
[1750952461452,0.4497,107000.0,106990.0,0.1868696]
[1750952461750,0.77838127,107000.0,106990.0,0.60952041]
[1750952462256,0.77838127,107000.0,106990.0,0.54725546]
[1750952462447,0.77838127,107000.0,106990.0,0.58805546]
[1750952462753,0.77938127,107000.0,106990.0,0.58805546]
[1750952463556,0.78038127,107000.0,106990.0,0.58805546]
[1750952464064,0.78038127,107000.0,106990.0,0.62935546]
[1750952464959,0.79038127,107000.0,106990.0,0.62935546]
[1750952465161,0.79038127,107000.0,106990.0,0.58805546]
[1750952467753,0.79038127,107000.0,106990.0,0.54725546]
[1750952468555,0.42958127,107000.0,106990.0,0.54725546]
[1750952469362,0.08958127,107000.0,106990.0,0.54725546]
[1750952471261,0.08958127,107000.0,106990.0,1.42273546]
[1750952476255,0.08958127,107000.0,106990.0,1.82783546]
[1750952477856,0.0002,107010.0,107000.0,0.1868521]
[1750952478061,0.0858,107020.0,107010.0,0.1868346]
[1750952478360,0.11483328,107020.0,107010.0,1.78182046]
[1750952478563,0.0012,107030.0,107020.0,0.1868171]
[1750952478866,0.001,107030.0,107020.0,0.94930296]
[1750952479054,0.001,107030.0,107020.0,1.03120296]
[1750952479260,0.001,107030.0,107020.0,1.08120296]
[1750952479769,0.001,107030.0,107020.0,1.27920296]
[1750952479963,0.001,107030.0,107020.0,1.28852122]
[1750952480463,0.001,107030.0,107020.0,1.29052122]
[1750952481069,0.001,107030.0,107020.0,2.16372122]
[1750952481459,0.001,107030.0,107020.0,1.29052122]
[1750952481666,1.08198586,107030.0,107020.0,0.19333536]
[1750952481972,1.20918586,107030.0,107020.0,0.8614171]
[1750952482358,1.0357998,107030.0,107020.0,0.8614171]
[1750952482562,0.849,107030.0,107020.0,0.8614171]
[1750952482767,1.0357998,107030.0,107020.0,0.8614171]
[1750952482968,1.0357998,107030.0,107020.0,0.1840171]
[1750952483170,1.0357998,107030.0,107020.0,1.0566571]
[1750952483369,1.0357998,107030.0,107020.0,0.1840171]
[1750952483574,1.0357998,107030.0,107020.0,0.8609371]
[1750952483770,0.849,107030.0,107020.0,0.8609371]
[1750952485875,0.4882,107030.0,107020.0,0.8609371]
[1750952486174,0.849,107030.0,107020.0,0.8609371]
[1750952487368,0.4882,107030.0,107020.0,1.64373808]
[1750952487568,0.086,107030.0,107020.0,1.64373808]
[1750952487769,0.044,107030.0,107020.0,1.68733808]
[1750952487969,0.044,107030.0,107020.0,1.72863808]
[1750952489473,0.001,107030.0,107020.0,1.72863808]
[1750952489678,0.001,107030.0,107020.0,1.80863808]
[1750952489879,0.001,107030.0,107020.0,2.05863808]
[1750952490675,0.001,107030.0,107020.0,2.24827808]
[1750952491386,0.001,107030.0,107020.0,1.8262771]
[1750952491688,0.001,107030.0,107020.0,2.24827808]
[1750952491873,0.001,107030.0,107020.0,1.38171808]
[1750952492078,0.001,107030.0,107020.0,2.24795808]
[1750952494383,0.001,107030.0,107020.0,0.5989171]
[1750952494584,0.001,107030.0,107020.0,1.84505808]
[1750952494780,0.0848,107030.0,107020.0,1.51505808]
[1750952495188,0.0848,107030.0,107020.0,1.87505808]
[1750952495480,0.001,107030.0,107020.0,2.23585808]
[1750952495681,0.001,107060.0,107020.0,2.23585808]
[1750952495682,0.3608,107070.0,107060.0,0.1867475]
[1750952495882,0.4012,107070.0,107060.0,1.47378848]
[1750952496080,0.43521925,107090.0,107080.0,0.1867126]
[1750952496282,0.75521925,107090.0,107080.0,1.47363358]
[1750952496587,0.6818,107090.0,107080.0,1.0516326]
[1750952497190,0.6868,107090.0,107080.0,1.47363358]
[1750952497393,0.7279,107090.0,107080.0,1.47363358]
[1750952497686,0.7229,107090.0,107080.0,1.47463358]
[1750952498185,0.7229,107090.0,107080.0,1.48414702]
[1750952498583,0.7229,107090.0,107080.0,1.52784702]
[1750952499076,0.765,107090.0,107080.0,1.10584604]
[1750952499278,0.765,107090.0,107080.0,1.52784702]
[1750952499993,0.765,107090.0,107080.0,1.52884702]
[1750952500291,0.765,107090.0,107080.0,0.69482058]
[1750952500596,0.9516952,107090.0,107080.0,1.12710616]
[1750952500781,0.9952952,107090.0,107080.0,1.12710616]
[1750952502286,0.9952952,107090.0,107080.0,1.12678616]
[1750952503995,0.9952952,107090.0,107080.0,0.26330616]
[1750952504194,1.41729618,107090.0,107080.0,0.26330616]
[1750952504394,1.66729618,107090.0,107080.0,0.93526616]
[1750952504898,1.2452952,107090.0,107080.0,0.93526616]
[1750952505096,0.9952952,107090.0,107080.0,0.93526616]
[1750952506193,0.9952952,107090.0,107080.0,0.26330616]
[1750952506393,0.9952952,107090.0,107080.0,0.93506616]
[1750952507090,1.66729618,107090.0,107080.0,0.07659356]
[1750952507288,1.66729618,107090.0,107080.0,0.74783356]
[1750952507488,1.66729618,107090.0,107080.0,0.07659356]
[1750952507692,1.69594699,107090.0,107080.0,0.07659356]
[1750952508083,1.69594699,107090.0,107080.0,0.26330616]
[1750952508602,1.69594699,107090.0,107080.0,0.07659356]
[1750952509596,1.69594699,107090.0,107080.0,0.26330616]
[1750952509796,1.69594699,107090.0,107080.0,0.26230616]
[1750952509996,1.69694699,107090.0,107080.0,0.26130616]
[1750952511103,1.69694699,107090.0,107080.0,0.07459356]
[1750952511397,0.18673,107070.0,107060.0,0.4710676]
[1750952511700,1.67897533,107070.0,107060.0,0.9503876]
[1750952511891,1.29867435,107070.0,107060.0,0.2801076]
[1750952512092,1.38507435,107070.0,107060.0,0.3551491]
[1750952512288,1.38507435,107070.0,107060.0,0.3553491]
[1750952512493,1.80707533,107070.0,107060.0,0.0752415]
[1750952512694,0.1867824,107040.0,107030.0,0.2801858]
[1750952512892,0.9175824,107040.0,107030.0,0.27981289]
[1750952513093,1.0487824,107040.0,107030.0,0.27981289]
[1750952513490,1.0774258,107040.0,107030.0,0.27981289]
[1750952513988,1.0487824,107040.0,107030.0,0.28281289]
[1750952514192,1.0487824,107040.0,107030.0,0.32851289]
[1750952514800,1.0487824,107040.0,107030.0,0.40179082]
[1750952515300,1.07741991,107040.0,107030.0,0.39879082]
[1750952515502,1.07741991,107040.0,107030.0,0.40079082]
[1750952516202,1.07741991,107040.0,107030.0,0.41637986]
[1750952516800,1.07741991,107040.0,107030.0,0.36968066]
[1750952516992,1.07741991,107040.0,107030.0,0.28065587]
[1750952517199,1.07741991,107040.0,107030.0,0.28066677]
[1750952519001,1.07741991,107040.0,107030.0,0.76266697]
[1750952519403,1.07741991,107040.0,107030.0,0.94946677]
[1750952519599,1.07741991,107040.0,107030.0,0.09386697]
[1750952519799,1.47078338,107040.0,107030.0,0.07827793]
[1750952520002,1.49908569,107040.0,107030.0,0.07827793]
[1750952520197,1.49908569,107040.0,107030.0,0.26507773]
[1750952520398,1.07708471,107040.0,107030.0,0.26507773]
[1750952520707,1.0487824,107040.0,107030.0,0.26507773]
[1750952521308,1.07708436,107040.0,107030.0,0.26507773]
[1750952524309,1.07708436,107040.0,107030.0,0.30887773]
[1750952524511,0.75910196,107040.0,107030.0,0.73087871]
[1750952524713,0.38910196,107040.0,107030.0,1.00015871]
[1750952524911,0.53910196,107040.0,107030.0,1.00015871]
[1750952525409,0.6975824,107040.0,107030.0,0.57815773]
[1750952525604,0.6975824,107040.0,107030.0,1.00015871]
[1750952525800,0.5108,107040.0,107030.0,1.00015871]
[1750952527707,0.6975824,107040.0,107030.0,1.00015871]
[1750952528509,0.3608,107050.0,107040.0,0.1867824]
[1750952528709,0.90584128,107050.0,107040.0,1.36074338]
[1750952529411,0.6908,107050.0,107040.0,1.36074338]
[1750952529611,0.6908,107050.0,107040.0,1.36094338]
[1750952530004,0.4308,107050.0,107040.0,1.36194338]
[1750952530405,0.4108,107050.0,107040.0,1.36194338]
[1750952530711,0.5975649,107050.0,107040.0,0.2727824]
[1750952531016,0.8675649,107050.0,107040.0,0.8544]
[1750952531310,1.0010649,107050.0,107040.0,1.0411824]
[1750952533305,1.0010649,107050.0,107040.0,0.1879824]
[1750952533505,1.0010649,107050.0,107040.0,0.8541824]
[1750952535914,0.9567649,107050.0,107040.0,0.8541824]
[1750952536111,0.9567649,107050.0,107040.0,0.1879824]
[1750952536418,0.9567649,107050.0,107040.0,0.8531424]
[1750952538014,0.98511921,107050.0,107040.0,0.8531424]
[1750952538219,1.34517099,107050.0,107040.0,0.1879824]
[1750952538414,0.98511921,107050.0,107040.0,0.1879824]
[1750952538618,1.34517099,107050.0,107040.0,0.20333698]
[1750952538819,0.98511921,107050.0,107040.0,0.20333698]
[1750952539523,0.98511921,107050.0,107040.0,0.24463698]
[1750952540826,0.75405431,107050.0,107040.0,0.60468876]
[1750952541016,0.89591921,107050.0,107040.0,0.64968876]
[1750952541918,0.93731921,107050.0,107040.0,0.64968876]
[1750952542118,0.93731921,107050.0,107040.0,0.83656876]
[1750952542714,1.29737099,107050.0,107040.0,0.20333698]
[1750952542919,1.33847099,107050.0,107040.0,0.0012]
[1750952543221,1.33847099,107050.0,107040.0,0.1879824]
[1750952545118,0.97841921,107050.0,107040.0,0.1879824]
[1750952545518,0.97841921,107050.0,107040.0,0.54803418]
[1750952545725,0.93731921,107050.0,107040.0,0.54803418]
[1750952546022,0.93731921,107050.0,107040.0,0.63653418]
[1750952546221,0.89591921,107050.0,107040.0,0.63653418]
[1750952547516,0.70915431,107050.0,107040.0,0.63653418]
[1750952548927,0.89591921,107050.0,107040.0,0.2764824]
[1750952549227,0.43915431,107050.0,107040.0,0.63653418]
[1750952550826,0.38915431,107050.0,107040.0,0.63653418]
[1750952551222,0.3608,107050.0,107040.0,0.63653418]
[1750952552326,0.361,107060.0,107050.0,0.1867649]
[1750952552522,0.72928111,107060.0,107050.0,1.52643668]
[1750952553430,0.73028111,107060.0,107050.0,1.52643668]
[1750952553721,0.09048111,107060.0,107050.0,1.88723668]
[1750952553931,0.0002,107070.0,107060.0,0.1867475]
[1750952554126,0.47470836,107090.0,107080.0,0.1867126]
[1750952554429,0.75009765,107090.0,107080.0,1.39128438]
[1750952554619,0.75009765,107090.0,107080.0,1.43238438]
[1750952555122,0.75009765,107090.0,107080.0,1.0723326]
[1750952555428,0.75009765,107090.0,107080.0,1.47578438]
[1750952555631,0.79129765,107090.0,107080.0,1.47578438]
[1750952556329,0.79129765,107090.0,107080.0,1.53715779]
[1750952556632,0.79129765,107090.0,107080.0,1.53815779]
[1750952557327,0.75009765,107090.0,107080.0,1.53815779]
[1750952558027,0.93679285,107090.0,107080.0,0.1887126]
[1750952558220,1.02209285,107090.0,107080.0,1.0323926]
[1750952560726,1.44351804,107090.0,107080.0,0.1887126]
[1750952560932,1.44351804,107090.0,107080.0,0.002]
[1750952561131,1.69351804,107090.0,107080.0,0.002]
[1750952562130,1.44351804,107090.0,107080.0,0.002]
[1750952562833,1.44351804,107090.0,107080.0,0.1887126]
[1750952563134,1.02209285,107090.0,107080.0,0.1887126]
[1750952563334,1.44351804,107090.0,107080.0,0.1887126]
[1750952565531,1.02209285,107090.0,107080.0,0.1887126]
[1750952567440,0.99362229,107090.0,107080.0,0.8474326]
[1750952567640,1.02207528,107090.0,107080.0,0.9317326]
[1750952570132,0.93677528,107090.0,107080.0,0.9317326]
[1750952571136,1.02017528,107090.0,107080.0,0.9317326]
[1750952571438,1.02017528,107090.0,107080.0,0.9319326]
[1750952572940,0.97867528,107090.0,107080.0,0.9319326]
[1750952573139,0.79198008,107090.0,107080.0,1.35335779]
[1750952573540,0.97867518,107090.0,107080.0,1.35335779]
[1750952573741,0.97867518,107090.0,107080.0,0.9319326]
[1750952574136,1.02277518,107090.0,107080.0,1.0290326]
[1750952576735,1.02277518,107090.0,107080.0,0.1889126]
[1750952577044,1.44420037,107090.0,107080.0,0.8453926]
[1750952577241,1.44420037,107090.0,107080.0,0.65868]
[1750952577443,1.44420037,107090.0,107080.0,0.8453926]
[1750952578144,1.44420037,107090.0,107080.0,0.1889126]
[1750952579139,1.02277518,107090.0,107080.0,0.1889126]
[1750952579543,1.44420037,107090.0,107080.0,0.1889126]
[1750952580343,1.38252062,107090.0,107080.0,0.1889126]
[1750952580743,1.38252062,107090.0,107080.0,0.0022]
[1750952581948,1.02277518,107090.0,107080.0,0.0022]
[1750952582148,1.38252062,107090.0,107080.0,0.1889126]
[1750952584752,1.38252062,107090.0,107080.0,0.0022]
[1750952585051,1.38252062,107090.0,107080.0,0.1889126]
[1750952585350,1.38252062,107090.0,107080.0,0.0022]
[1750952588351,1.38252062,107090.0,107080.0,0.1889126]
[1750952588551,1.38252062,107090.0,107080.0,0.0022]
[1750952598655,1.02277518,107090.0,107080.0,0.0022]
[1750952598958,1.38252062,107090.0,107080.0,0.0022]
[1750952601268,1.38252062,107090.0,107080.0,0.1889126]
[1750952601455,1.38252062,107090.0,107080.0,0.0022]
[1750952602058,2.03424062,107090.0,107080.0,0.0022]
[1750952602458,1.38252062,107090.0,107080.0,0.0022]
[1750952602665,0.97867518,107090.0,107080.0,0.1889126]
[1750952602965,1.33842062,107090.0,107080.0,0.1333]
[1750952603166,1.33842062,107090.0,107080.0,0.3200126]
[1750952603664,1.33842062,107090.0,107080.0,0.1333]
[1750952603864,1.33842062,107090.0,107080.0,0.3200126]
[1750952604967,1.29652062,107090.0,107080.0,0.3200126]
[1750952608264,0.93677518,107090.0,107080.0,0.3200126]
[1750952608466,1.29652062,107090.0,107080.0,0.3200126]
[1750952608668,0.93677518,107090.0,107080.0,0.3200126]
[1750952610269,0.80343443,107090.0,107080.0,0.3200126]
[1750952610466,0.61673933,107090.0,107080.0,0.3200126]
[1750952610669,0.80343443,107090.0,107080.0,0.67975804]
[1750952613766,0.25593933,107090.0,107080.0,0.67975804]
[1750952614074,0.22748634,107090.0,107080.0,1.40030348]
[1750952614675,0.0002,107100.0,107090.0,0.1866954]
[1750952614874,0.35845338,107100.0,107090.0,1.46076084]
[1750952615072,0.02845338,107100.0,107090.0,1.1010154]
[1750952615272,0.66945602,107110.0,107100.0,0.1866779]
[1750952615577,0.89592372,107110.0,107100.0,0.68032334]
[1750952616577,0.89792372,107110.0,107100.0,0.68032334]
[1750952616874,0.89992372,107110.0,107100.0,0.68032334]
[1750952617081,0.89992372,107110.0,107100.0,0.75470508]
[1750952617487,0.89992372,107110.0,107100.0,0.68032334]
[1750952618479,0.89992372,107110.0,107100.0,0.3205779]
[1750952618879,0.89992372,107110.0,107100.0,0.68032334]
[1750952619082,0.8714697,107110.0,107100.0,0.68032334]
[1750952619680,0.6848,107110.0,107100.0,0.68032334]
[1750952620281,0.8714605,107110.0,107100.0,0.68032334]
[1750952620477,0.6848,107110.0,107100.0,0.68032334]
[1750952620785,0.6848,107110.0,107100.0,0.33014254]
[1750952620979,0.8714605,107110.0,107100.0,0.68988798]
[1750952621788,0.8714605,107110.0,107100.0,0.33014254]
[1750952622082,0.8714605,107110.0,107100.0,0.765267]
[1750952625094,0.6848,107110.0,107100.0,0.765267]
[1750952625289,0.8714605,107110.0,107100.0,0.765267]
[1750952629192,1.23120594,107110.0,107100.0,1.0089579]
[1750952629394,1.35073289,107110.0,107100.0,0.8330379]
[1750952629692,1.35073289,107110.0,107100.0,0.64636]
[1750952629894,1.35073289,107110.0,107100.0,0.8330379]
[1750952630887,0.186678,107100.0,107090.0,0.2601935]
[1750952631088,1.40705039,107100.0,107090.0,0.186695]
[1750952631296,1.37862344,107100.0,107090.0,0.186695]
[1750952631688,1.37862344,107100.0,107090.0,0.832455]
[1750952631992,1.37962344,107100.0,107090.0,0.832455]
[1750952632394,1.40801491,107100.0,107090.0,0.832455]
[1750952632596,1.40801491,107100.0,107090.0,0.186695]
[1750952632898,1.40901491,107100.0,107090.0,0.832415]
[1750952633598,1.04926947,107100.0,107090.0,0.832415]
[1750952633897,1.40901491,107100.0,107090.0,0.832415]
[1750952635794,1.40901491,107100.0,107080.0,0.84072]
[1750952635795,0.1866943,107090.0,107080.0,0.84072]